bitfinex/quotes_SOLUSD_20250802
["timestamp","ask_amount","ask_price","bid_price","bid_amount"]
[1754144875569,0.03,163.75,163.74,10.47888124]
[1754144878802,0.03,163.75,163.74,6.27913392]
[1754144880223,0.72,163.75,163.74,6.27913392]
[1754144880383,0.72,163.75,163.71,6.27913392]
[1754144880986,0.67,163.74,163.72,6.27913392]
[1754144881322,0.03,163.75,163.7,0.06]
[1754144881486,0.03,163.75,163.72,6.27913392]
[1754144881897,0.67,163.74,163.72,6.27913392]
[1754144882094,26.0,163.74,163.73,6.27913392]
[1754144882988,0.67,163.74,163.7,0.06]
[1754144883196,26.67,163.74,163.72,6.27913392]
[1754144884216,26.67,163.74,163.7,0.06]
[1754144884217,26.0,163.74,163.7,0.06]
[1754144884426,32.94913392,163.73,163.7,0.06]
[1754144884611,26.0,163.71,163.7,0.06]
[1754144884809,26.67,163.71,163.7,0.06]
[1754144885024,0.67,163.71,163.7,0.06]
[1754144885228,26.0,163.71,163.7,0.06]
[1754144885914,26.67,163.71,163.7,0.06]
[1754144886116,26.0,163.71,163.7,6.33913392]
[1754144886617,26.67,163.74,163.7,6.33913392]
[1754144886819,0.67,163.73,163.7,0.06]
[1754144887019,26.0,163.72,163.7,6.33913392]
[1754144887411,26.0,163.72,163.71,6.27913392]
[1754144887622,26.0,163.74,163.71,6.27913392]
[1754144887818,0.03,163.75,163.73,6.27913392]
[1754144888128,0.03,163.75,163.74,6.27913392]
[1754144888317,26.03,163.75,163.74,6.27913392]
[1754144888798,0.03,163.75,163.74,6.27913392]
[1754144890842,0.03,163.75,163.74,23.48381789]
[1754144891212,0.03,163.75,163.74,25.93247289]
[1754144892300,0.03,163.75,163.74,25.51247289]
[1754144893332,0.7,163.75,163.74,2.448655]
[1754144893512,0.7,163.75,163.72,6.27913392]
[1754144893721,0.67,163.74,163.72,6.27913392]
[1754144896432,0.67,163.74,163.7,0.06]
[1754144896633,0.03,163.75,163.73,6.27913392]
[1754144896934,0.7,163.75,163.73,6.27913392]
[1754144897324,0.03,163.75,163.74,6.27913392]
[1754144897641,0.03,163.75,163.74,23.48381789]
[1754144897810,0.03,163.75,163.74,29.76295181]
[1754144898219,0.03,163.75,163.74,23.48381789]
[1754144898826,0.03,163.75,163.74,25.93232289]
[1754144902838,0.03,163.75,163.74,32.21145681]
[1754144903043,0.03,163.75,163.74,25.93232289]
[1754144903217,0.03,163.75,163.74,25.51232289]
[1754144904049,0.03,163.75,163.74,8.72763892]
[1754144904253,0.7,163.75,163.74,6.27913392]
[1754144906721,0.03,163.75,163.74,6.27913392]
[1754144907038,0.03,163.75,163.74,6.69913392]
[1754144907719,0.03,163.75,163.74,23.48381789]
[1754144908713,0.03,163.75,163.74,23.06381789]
[1754144909330,0.03,163.75,163.74,23.48381789]
[1754144909926,0.03,163.75,163.74,29.76295181]
[1754144913149,0.03,163.75,163.74,32.21145681]
[1754144913650,0.03,163.77,163.75,16.78468397]
[1754144913854,0.03,163.77,163.76,29.34295181]
[1754144914143,0.2,163.79,163.77,16.78468397]
[1754144914443,0.2,163.79,163.78,23.06381789]
[1754144914653,0.2,163.79,163.78,25.51157289]
[1754144915455,0.87,163.79,163.78,8.72688892]
[1754144915646,0.87,163.79,163.72,0.06]
[1754144915951,0.67,163.78,163.75,6.27913392]
[1754144917954,32.27913392,163.77,163.72,6.33913392]
[1754144918153,6.94913392,163.76,163.72,0.06]
[1754144918354,6.94913392,163.76,163.72,6.33913392]
[1754144918560,0.67,163.75,163.72,6.33913392]
[1754144918737,0.67,163.75,163.72,10.52975963]
[1754144918943,10.46975963,163.73,163.72,0.06]
[1754144919145,37.13975963,163.73,163.72,0.06]
[1754144919333,26.67,163.73,163.72,0.06]
[1754144919533,37.13975963,163.73,163.72,0.06]
[1754144919762,0.67,163.73,163.72,0.06]
[1754144923295,26.0,163.76,163.72,10.52975963]
[1754144923583,26.67,163.75,163.73,10.46975963]
[1754144923765,26.0,163.75,163.73,10.46975963]
[1754144924078,0.67,163.74,163.73,10.46975963]
[1754144924379,0.67,163.76,163.73,10.46975963]
[1754144924543,0.67,163.76,163.72,0.06]
[1754144924544,0.87,163.79,163.75,10.46975963]
[1754144924744,26.67,163.78,163.76,10.46975963]
[1754144924946,0.67,163.77,163.76,10.46975963]
[1754144926080,0.67,163.77,163.73,10.46975963]
[1754144926464,0.67,163.77,163.74,10.46975963]
[1754144926683,0.67,163.77,163.75,10.46975963]
[1754144926983,26.67,163.77,163.76,10.46975963]
[1754144927142,26.67,163.77,163.75,10.46975963]
[1754144927548,0.67,163.76,163.74,10.46975963]
[1754144927748,0.67,163.75,163.74,10.46975963]
[1754144928674,0.67,163.75,163.72,0.06]
[1754144928982,0.67,163.75,163.74,10.46975963]
[1754144929580,0.67,163.75,163.73,10.46975963]
[1754144929770,0.67,163.75,163.72,10.52975963]
[1754144929957,0.67,163.75,163.72,0.06]
[1754144931775,36.46975963,163.74,163.72,0.06]
[1754144931971,0.67,163.73,163.72,0.06]
[1754144934966,26.67,163.73,163.72,0.06]
[1754144935368,37.13975963,163.73,163.72,0.06]
[1754144936487,0.67,163.73,163.72,0.06]
[1754144939592,6.95388762,163.73,163.72,0.06]
[1754144940093,37.01562028,163.73,163.72,0.06]
[1754144940393,32.95388762,163.73,163.72,0.06]
[1754144940902,26.67,163.73,163.72,0.06]
[1754144941073,32.95388762,163.73,163.72,0.06]
[1754144942095,26.0,163.73,163.72,0.06]
[1754144942597,26.66,163.73,163.72,0.06]
[1754144943600,26.0,163.73,163.72,0.06]
[1754144943786,26.0,163.73,163.72,6.34388762]
[1754144945691,3.21874921,163.77,163.72,6.34388762]
[1754144945902,26.0,163.76,163.74,6.28388762]
[1754144946195,0.69,163.77,163.75,6.28388762]
[1754144946501,0.66,163.76,163.73,6.28388762]
[1754144946678,0.66,163.76,163.74,6.28388762]
[1754144947093,26.66,163.76,163.74,6.28388762]
[1754144948673,26.0,163.76,163.74,6.28388762]
[1754144948872,26.03,163.77,163.75,6.28388762]
[1754144949502,26.66,163.76,163.74,6.28388762]
[1754144950872,26.03,163.77,163.74,6.28388762]
[1754144951105,26.0,163.76,163.74,6.28388762]
[1754144953324,0.66,163.75,163.74,6.28388762]
[1754144953525,0.66,163.75,163.72,0.06]
[1754144953831,26.0,163.76,163.74,6.28388762]
[1754144954207,26.66,163.76,163.74,6.28388762]
[1754144954600,26.03,163.77,163.75,6.28388762]
[1754144957927,26.03,163.77,163.76,6.28388762]
[1754144958096,0.03,163.77,163.76,6.28388762]
[1754144961218,0.03,163.77,163.76,0.42]
[1754144961406,0.03,163.77,163.76,6.70388762]
[1754144962132,0.03,163.77,163.76,6.28388762]
[1754144963631,0.69,163.77,163.76,6.28388762]
[1754144964614,0.03,163.77,163.76,6.28388762]
[1754144965638,0.03,163.77,163.76,6.70388762]
[1754144966014,0.03,163.77,163.76,6.28388762]
[1754144973648,0.71,163.77,163.76,6.28388762]
[1754144975064,0.71,163.77,163.75,0.06]
[1754144975065,0.71,163.77,163.75,6.34388762]
[1754144975276,0.68,163.76,163.75,6.34388762]
[1754144977969,0.03,163.77,163.75,6.34388762]
[1754144978278,0.71,163.77,163.76,6.28388762]
[1754144979148,0.71,163.77,163.75,0.06]
[1754144979452,0.71,163.77,163.75,6.34388762]
[1754144979653,26.0,163.76,163.75,0.06]
[1754144980070,26.68,163.76,163.75,0.06]
[1754144980957,0.68,163.76,163.75,0.06]
[1754144981162,26.68,163.76,163.75,0.06]
[1754144983151,0.68,163.76,163.75,0.06]
[1754144983471,26.68,163.76,163.75,0.06]
[1754144987489,26.03,163.77,163.75,6.34388762]
[1754144987703,26.03,163.77,163.76,12.98777524]
[1754144987704,0.03,163.77,163.76,12.98777524]
[1754144987866,0.03,163.77,163.76,29.77245921]
[1754144989113,0.03,163.77,163.76,6.70388762]
[1754144989286,0.03,163.77,163.76,6.28388762]
[1754144990912,0.03,163.77,163.76,12.98777524]
[1754144991710,0.03,163.77,163.76,12.56777524]
[1754144992209,0.03,163.77,163.76,12.98777524]
[1754144992413,0.03,163.77,163.76,12.56777524]
[1754144992709,0.03,163.77,163.76,12.98777524]
[1754144994005,0.03,163.77,163.76,12.56777524]
[1754144994490,0.03,163.77,163.76,29.77245921]
[1754144994996,0.03,163.77,163.76,29.35245921]
[1754144996594,0.03,163.77,163.76,6.28388762]
[1754144996994,0.71,163.77,163.76,6.28388762]
[1754144999507,0.71,163.77,163.75,6.34388762]
[1754144999713,32.99388762,163.77,163.75,0.06]
[1754145000213,0.68,163.76,163.75,0.06]
[1754145000388,6.96388762,163.76,163.75,0.06]
[1754145000587,6.96388762,163.76,163.73,0.06]
[1754145000588,26.0,163.74,163.73,0.06]
[1754145000798,26.0,163.74,163.72,0.06]
[1754145000799,32.28388762,163.74,163.7,0.06]
[1754145000995,32.28388762,163.74,163.68,0.06]
[1754145000996,6.28388762,163.71,163.68,0.06]
[1754145001196,26.68,163.73,163.68,6.34388762]
[1754145001390,26.0,163.7,163.69,6.34388762]
[1754145001614,0.68,163.71,163.69,6.34388762]
[1754145001788,26.0,163.71,163.7,6.28388762]
[1754145001988,26.0,163.71,163.69,0.06]
[1754145001989,26.68,163.71,163.69,6.34388762]
[1754145002523,0.68,163.7,163.69,6.34388762]
[1754145003196,0.68,163.72,163.69,6.34388762]
[1754145003520,0.03,163.77,163.69,6.34388762]
[1754145003521,0.68,163.71,163.69,0.06]
[1754145003819,0.68,163.7,163.69,6.34388762]
[1754145004816,0.68,163.72,163.69,6.34388762]
[1754145005006,0.68,163.72,163.71,6.28388762]
[1754145005809,4.07849317,163.74,163.71,6.28388762]
[1754145006119,26.68,163.73,163.71,6.28388762]
[1754145007426,0.03,163.77,163.72,6.28388762]
[1754145007427,26.0,163.74,163.72,6.28388762]
[1754145007718,11.03884271,163.73,163.69,6.34388762]
[1754145007923,26.0,163.7,163.69,0.06]
[1754145008121,32.96388762,163.7,163.69,0.06]
[1754145008537,32.96388762,163.7,163.68,0.06]
[1754145008702,26.0,163.66,163.62,6.28388762]
[1754145008893,0.68,163.65,163.62,6.28388762]
[1754145009096,26.0,163.66,163.62,6.28388762]
[1754145009291,0.68,163.64,163.62,6.28388762]
[1754145009607,0.68,163.67,163.63,6.28388762]
[1754145009796,0.68,163.67,163.59,0.1]
[1754145009797,0.68,163.66,163.64,6.28388762]
[1754145010218,0.68,163.65,163.64,6.28388762]
[1754145010394,0.68,163.65,163.59,16.88468397]
[1754145010594,6.96388762,163.65,163.59,0.1]
[1754145010903,32.96388762,163.64,163.59,6.38388762]
[1754145011105,26.0,163.6,163.59,0.1]
[1754145011526,26.68,163.6,163.59,0.1]
[1754145012196,6.28388762,163.63,163.59,0.1]
[1754145012524,26.0,163.6,163.59,0.1]
[1754145012726,0.68,163.63,163.59,6.38388762]
[1754145013106,0.68,163.63,163.6,6.28388762]
[1754145013309,0.68,163.62,163.6,6.28388762]
[1754145013710,6.28388762,163.65,163.6,6.28388762]
[1754145014031,26.0,163.67,163.61,0.69]
[1754145014197,0.68,163.65,163.59,0.1]
[1754145014404,0.68,163.65,163.61,6.28388762]
[1754145015129,0.68,163.65,163.59,0.1]
[1754145015130,0.68,163.65,163.62,6.28388762]
[1754145015835,32.28388762,163.67,163.62,6.28388762]
[1754145015836,26.0,163.66,163.64,6.28388762]
[1754145016338,26.68,163.66,163.64,6.28388762]
[1754145017050,32.28388762,163.67,163.63,6.28388762]
[1754145017208,6.96388762,163.65,163.6,6.28388762]
[1754145017403,26.0,163.67,163.59,6.38388762]
[1754145017404,6.96388762,163.64,163.59,6.38388762]
[1754145017608,0.68,163.63,163.6,6.28388762]
[1754145017823,0.68,163.63,163.61,6.28388762]
[1754145018041,0.68,163.63,163.6,6.28388762]
[1754145018227,0.68,163.63,163.61,6.28388762]
[1754145018407,26.0,163.66,163.62,6.97388762]
[1754145018607,26.68,163.66,163.64,6.28388762]
[1754145018808,26.0,163.66,163.64,6.28388762]
[1754145019340,26.0,163.66,163.65,6.28388762]
[1754145019513,26.0,163.66,163.64,6.28388762]
[1754145019714,0.68,163.65,163.62,0.06]
[1754145020011,26.0,163.66,163.63,6.28388762]
[1754145020343,26.0,163.66,163.64,6.28388762]
[1754145020525,26.68,163.66,163.64,6.28388762]
[1754145021139,26.68,163.66,163.62,0.06]
[1754145021309,26.68,163.66,163.64,6.28388762]
[1754145023150,146.78,163.69,163.65,6.28388762]
[1754145023348,0.68,163.68,163.62,0.06]
[1754145023512,26.0,163.66,163.63,6.28388762]
[1754145023711,0.68,163.65,163.63,6.28388762]
[1754145023910,0.68,163.64,163.63,6.28388762]
[1754145024414,0.68,163.67,163.63,6.28388762]
[1754145024625,0.68,163.66,163.64,6.28388762]
[1754145024823,0.68,163.65,163.64,6.28388762]
[1754145025524,0.68,163.67,163.64,6.28388762]
[1754145025843,0.68,163.66,163.64,6.28388762]
[1754145026642,26.0,163.66,163.65,6.28388762]
[1754145028248,26.68,163.66,163.64,6.28388762]
[1754145028651,26.68,163.66,163.62,0.06]
[1754145028652,0.68,163.65,163.62,0.06]
[1754145028838,0.68,163.65,163.63,6.28388762]
[1754145029154,0.68,163.65,163.64,6.28388762]
[1754145029347,26.0,163.66,163.64,6.28388762]
[1754145030644,26.0,163.66,163.65,6.28388762]
[1754145032257,26.67,163.66,163.65,6.28388762]
[1754145032750,26.67,163.66,163.63,6.28388762]
[1754145032951,0.67,163.65,163.62,6.34388762]
[1754145033162,0.67,163.64,163.62,6.34388762]
[1754145033379,0.67,163.63,163.62,0.06]
[1754145033530,26.67,163.63,163.62,0.06]
[1754145034556,26.0,163.63,163.62,0.06]
[1754145034856,26.67,163.63,163.62,0.06]
[1754145035161,0.67,163.66,163.62,6.34388762]
[1754145035358,26.0,163.65,163.64,6.28388762]
[1754145035547,26.67,163.65,163.62,0.06]
[1754145035865,0.67,163.64,163.62,6.34388762]
[1754145036073,0.67,163.63,163.62,0.06]
[1754145037260,6.95388762,163.63,163.62,0.06]
[1754145037628,23.73857159,163.63,163.62,0.06]
[1754145038869,27.94649976,163.63,163.62,0.06]
[1754145039865,11.16181579,163.63,163.62,0.06]
[1754145040765,27.94649976,163.63,163.62,0.06]
[1754145040970,34.05784853,163.63,163.62,0.06]
[1754145041268,63.76831555,163.6,163.59,0.1]
[1754145041471,57.3248895,163.6,163.59,0.1]
[1754145041634,57.9948895,163.6,163.59,0.1]
[1754145043287,74.59917472,163.6,163.59,0.1]
[1754145043472,30.71838974,163.6,163.59,0.1]
[1754145043671,37.16181579,163.6,163.59,0.1]
[1754145044064,36.49181579,163.6,163.59,0.1]
[1754145044464,26.0,163.6,163.59,0.1]
[1754145044674,0.67,163.62,163.59,0.1]
[1754145044884,10.49181579,163.63,163.59,0.1]
[1754145045213,10.49181579,163.62,163.59,0.1]
[1754145045380,16.78468397,163.66,163.59,10.59181579]
[1754145045582,16.78468397,163.66,163.6,10.49181579]
[1754145045583,10.49181579,163.64,163.6,10.49181579]
[1754145045888,10.49181579,163.66,163.62,10.49181579]
[1754145046203,11.16181579,163.66,163.61,10.49181579]
[1754145046370,26.0,163.62,163.6,10.49181579]
[1754145046690,26.0,163.62,163.59,0.1]
[1754145046890,26.0,163.62,163.6,11.20181579]
[1754145047079,26.0,163.62,163.6,10.49181579]
[1754145047461,26.67,163.65,163.6,10.49181579]
[1754145047666,26.0,163.65,163.6,10.49181579]
[1754145047898,0.67,163.64,163.6,10.49181579]
[1754145048094,10.49181579,163.63,163.59,0.1]
[1754145048277,26.0,163.61,163.59,10.59181579]
[1754145048807,0.67,163.63,163.59,0.1]
[1754145048808,26.0,163.6,163.59,0.1]
[1754145049786,0.67,163.62,163.59,0.1]
[1754145049986,0.67,163.61,163.59,10.59181579]
[1754145050299,0.67,163.62,163.59,10.59181579]
[1754145050505,0.67,163.62,163.59,0.1]
[1754145051095,0.67,163.62,163.59,10.59181579]
[1754145051307,172.77,163.64,163.6,10.49181579]
[1754145051999,172.77,163.64,163.59,0.1]
[1754145052000,11.16181579,163.63,163.59,0.1]
[1754145052303,0.67,163.63,163.59,10.59181579]
[1754145052818,182.59181579,163.64,163.59,10.59181579]
[1754145053025,0.67,163.63,163.59,10.59181579]
[1754145053325,0.67,163.62,163.59,10.59181579]
[1754145053500,26.0,163.6,163.59,10.59181579]
[1754145054388,26.0,163.6,163.59,11.30181579]
[1754145054731,26.0,163.6,163.59,10.59181579]
[1754145055526,0.67,163.6,163.59,0.1]
[1754145056308,26.0,163.61,163.59,0.1]
[1754145056589,26.67,163.61,163.59,0.1]
[1754145057121,0.67,163.6,163.59,0.1]
[1754145057418,26.67,163.61,163.59,10.59181579]
[1754145057711,26.0,163.61,163.59,10.59181579]
[1754145058627,26.0,163.61,163.59,0.1]
[1754145058942,11.16181579,163.6,163.59,0.1]
[1754145059136,32.00166858,163.6,163.59,0.1]
[1754145059318,16.78468397,163.59,163.58,0.1]
[1754145059515,32.00166858,163.59,163.58,0.1]
[1754145061164,4.72516882,163.59,163.58,0.1]
[1754145061361,37.16181579,163.59,163.58,0.1]
[1754145062451,41.21178713,163.59,163.58,0.1]
[1754145062619,37.16181579,163.59,163.58,0.1]
[1754145062827,26.67,163.59,163.58,0.1]
[1754145063024,37.16181579,163.59,163.58,0.1]
[1754145063225,36.49181579,163.59,163.58,0.1]
[1754145063431,26.71,163.59,163.58,0.1]
[1754145063721,37.20181579,163.59,163.58,0.1]
[1754145064153,36.49181579,163.59,163.58,0.1]
[1754145064714,26.0,163.59,163.58,0.1]
[1754145064924,0.03,163.62,163.58,11.30181579]
[1754145065227,26.0,163.6,163.59,10.49181579]
[1754145065626,26.0,163.6,163.58,11.30181579]
[1754145066021,36.49181579,163.61,163.58,0.1]
[1754145066253,37.20181579,163.61,163.58,0.1]
[1754145066454,26.0,163.59,163.58,0.1]
[1754145068632,26.71,163.59,163.58,0.1]
[1754145068933,11.20181579,163.59,163.58,0.1]
[1754145069152,37.20181579,163.59,163.58,0.1]
[1754145069725,53.98649976,163.59,163.58,0.1]
[1754145071258,43.49468397,163.59,163.58,0.1]
[1754145071461,53.98649976,163.59,163.58,0.1]
[1754145072369,58.03511108,163.59,163.58,0.1]
[1754145072660,69.23054338,163.59,163.58,0.1]
[1754145073038,16.78468397,163.58,163.57,0.06]
[1754145073233,32.03511108,163.58,163.57,0.06]
[1754145074262,35.22807971,163.58,163.57,0.06]
[1754145074860,61.22807971,163.58,163.57,0.06]
[1754145075232,39.68478442,163.58,163.57,0.06]
[1754145075431,29.19296863,163.58,163.57,0.06]
[1754145075749,0.03,163.62,163.57,11.26181579]
[1754145076056,0.03,163.62,163.58,0.71]
[1754145076277,11.20181579,163.61,163.57,0.06]
[1754145076438,37.20181579,163.61,163.57,10.55181579]
[1754145077236,26.0,163.59,163.57,11.26181579]
[1754145078494,26.0,163.58,163.57,11.26181579]
[1754145078840,10.49181579,163.61,163.57,11.26181579]
[1754145079056,26.0,163.58,163.57,11.26181579]
[1754145080476,0.03,163.62,163.57,11.26181579]
[1754145080658,0.03,163.62,163.6,10.49181579]
[1754145080852,26.0,163.61,163.6,10.49181579]
[1754145081084,36.52181579,163.62,163.57,0.06]
[1754145081261,26.0,163.58,163.57,0.06]
[1754145082146,10.49181579,163.59,163.57,0.06]
[1754145082589,11.20181579,163.58,163.57,0.06]
[1754145082892,11.20181579,163.59,163.57,0.06]
[1754145083387,36.49181579,163.6,163.57,0.77]
[1754145083584,4.06505945,163.59,163.57,0.06]
[1754145083780,26.0,163.6,163.57,10.55181579]
[1754145083983,0.03,163.62,163.59,10.49181579]
[1754145084183,0.03,163.62,163.61,10.49181579]
[1754145084387,0.03,163.62,163.61,11.20181579]
[1754145084776,0.03,163.64,163.61,11.81302537]
[1754145085003,0.03,163.64,163.63,10.49181579]
[1754145085467,0.03,163.64,163.63,11.20181579]
[1754145087103,0.03,163.64,163.63,10.49181579]
[1754145087321,0.03,163.64,163.63,11.20181579]
[1754145091025,0.03,163.64,163.61,0.66]
[1754145091332,0.03,163.64,163.63,11.15181579]
[1754145092732,0.03,163.68,163.63,39.08831576]
[1754145093036,0.03,163.68,163.67,10.49181579]
[1754145093525,0.03,163.7,163.69,20.98363158]
[1754145093720,0.03,163.7,163.69,10.49181579]
[1754145094332,0.03,163.7,163.69,11.15181579]
[1754145094520,0.03,163.7,163.66,0.66]
[1754145094715,0.03,163.7,163.69,10.49181579]
[1754145095319,0.03,163.7,163.63,27.93649997]
[1754145095634,0.7,163.7,163.68,10.49181579]
[1754145096428,0.03,163.7,163.69,10.49181579]
[1754145097521,0.03,163.7,163.66,0.66]
[1754145097522,0.03,163.7,163.68,10.49181579]
[1754145097825,0.03,163.7,163.66,0.66]
[1754145097826,0.03,163.7,163.69,10.49181579]
[1754145098823,0.7,163.7,163.68,10.49181579]
[1754145099025,26.7,163.7,163.68,10.49181579]
[1754145099545,0.67,163.69,163.66,10.49181579]
[1754145099838,0.67,163.68,163.66,10.49181579]
[1754145100208,0.67,163.68,163.65,10.49181579]
[1754145100409,0.67,163.67,163.65,10.49181579]
[1754145100827,0.67,163.66,163.63,10.49181579]
[1754145102220,26.67,163.65,163.63,10.49181579]
[1754145102419,26.0,163.64,163.62,10.49181579]
[1754145102614,26.67,163.64,163.62,10.49181579]
[1754145103041,0.67,163.66,163.63,10.49181579]
[1754145103538,26.0,163.65,163.63,10.49181579]
[1754145103735,0.03,163.7,163.58,11.151816]
[1754145103736,0.67,163.69,163.64,11.15181579]
[1754145103931,26.0,163.67,163.65,10.49181579]
[1754145104543,26.0,163.69,163.66,10.49181579]
[1754145104745,26.0,163.69,163.68,10.49181579]
[1754145104929,26.0,163.69,163.66,10.49181579]
[1754145104930,26.0,163.68,163.66,10.49181579]
[1754145105137,26.67,163.68,163.65,10.49181579]
[1754145105333,26.0,163.68,163.66,10.49181579]
[1754145105569,26.0,163.68,163.67,10.49181579]
[1754145105947,26.03,163.7,163.67,10.49181579]
[1754145106267,26.03,163.7,163.68,10.49181579]
[1754145106968,0.03,163.7,163.67,10.49181579]
[1754145107130,10.52181579,163.68,163.63,0.06]
[1754145107331,26.0,163.65,163.63,10.55181579]
[1754145107543,26.03,163.68,163.64,10.49181579]
[1754145107750,0.03,163.7,163.67,10.49181579]
[1754145107955,0.03,163.7,163.69,10.49181579]
[1754145108764,26.7,163.7,163.65,0.66]
[1754145109064,26.7,163.7,163.68,10.49181579]
[1754145109563,26.0,163.69,163.67,10.49181579]
[1754145110070,26.0,163.69,163.68,10.49181579]
[1754145110835,0.03,163.7,163.68,10.49181579]
[1754145111069,0.03,163.7,163.69,10.49181579]
[1754145112841,0.03,163.7,163.69,11.15181579]
[1754145113381,0.03,163.7,163.69,21.64363158]
[1754145113666,0.03,163.7,163.69,11.15181579]
[1754145114674,0.03,163.7,163.64,11.151816]
[1754145114675,0.7,163.7,163.64,11.151816]
[1754145114861,26.0,163.69,163.64,0.66]
[1754145115064,0.67,163.68,163.67,10.49181579]
[1754145115252,0.67,163.68,163.63,2.510305]
[1754145115454,0.67,163.67,163.63,0.06]
[1754145115670,0.67,163.67,163.65,10.49181579]
[1754145115877,0.67,163.67,163.64,10.49181579]
[1754145116372,0.67,163.67,163.65,10.49181579]
[1754145116888,26.0,163.65,163.63,10.55181579]
[1754145117072,26.67,163.64,163.63,0.06]
[1754145117759,26.0,163.64,163.63,0.06]
[1754145118494,0.67,163.68,163.63,10.55181579]
[1754145118800,0.67,163.68,163.63,0.72]
[1754145119498,0.03,163.7,163.66,10.49181579]
[1754145119499,26.0,163.67,163.66,10.49181579]
[1754145119801,26.0,163.69,163.66,10.49181579]
[1754145120512,0.67,163.69,163.66,10.49181579]
[1754145120869,4.08520548,163.7,163.63,0.06]
[1754145120870,37.20181579,163.68,163.63,0.06]
[1754145121175,26.0,163.64,163.63,0.06]
[1754145121497,36.49181579,163.64,163.63,0.06]
[1754145121668,37.20181579,163.64,163.63,0.06]
[1754145121871,26.71,163.64,163.63,0.06]
[1754145122068,26.0,163.65,163.63,0.06]
[1754145122509,26.0,163.64,163.63,0.06]
[1754145122671,26.0,163.64,163.63,10.55181579]
[1754145122874,26.0,163.64,163.63,0.06]
[1754145123066,26.0,163.65,163.63,10.55181579]
[1754145123498,26.0,163.65,163.64,10.49181579]
[1754145123703,156.59181579,163.69,163.64,10.49181579]
[1754145123704,26.0,163.66,163.64,10.49181579]
[1754145123870,26.0,163.66,163.65,10.49181579]
[1754145124304,26.0,163.68,163.65,10.49181579]
[1754145124596,26.0,163.68,163.66,10.49181579]
[1754145124978,26.71,163.68,163.66,10.49181579]
[1754145125468,0.71,163.67,163.64,10.49181579]
[1754145125675,0.71,163.66,163.64,10.49181579]
[1754145125872,26.71,163.67,163.65,10.49181579]
[1754145127494,26.71,163.66,163.64,10.49181579]
[1754145127712,26.0,163.66,163.65,10.49181579]
[1754145128920,0.03,163.68,163.65,10.49181579]
[1754145129069,0.74,163.68,163.65,10.49181579]
[1754145129618,42.78468397,163.62,163.61,0.06]
[1754145129803,57.34506744,163.62,163.61,0.06]
[1754145129973,36.49181579,163.58,163.55,0.06]
[1754145130476,41.27038347,163.58,163.55,0.06]
[1754145130683,10.49181579,163.59,163.55,0.06]
[1754145130994,26.0,163.58,163.55,10.55181579]
[1754145131417,10.49181579,163.58,163.55,0.06]
[1754145131574,11.20181579,163.58,163.55,0.06]
[1754145132094,15.26091678,163.58,163.55,0.06]
[1754145132317,26.0,163.59,163.55,0.06]
[1754145132475,26.0,163.59,163.55,10.55181579]
[1754145132870,10.49181579,163.58,163.55,0.06]
[1754145133089,0.71,163.59,163.55,0.06]
[1754145133287,36.49181579,163.6,163.56,10.55181579]